fUSD/lending_fUSD_20250410
["ID","MTS","AMOUNT","RATE_DAILY","PERIOD"]
[357635624,1744262724943,-5558.0,0.000515,120]
[357635625,1744262724984,-1151.9,0.00052054,120]
[357635626,1744262725036,-1151.9,0.00054794,120]
[357635627,1744262725303,-150.0,0.00054795,120]
[357635628,1744262725348,-151.041005,0.00054798,120]
[357635629,1744262725389,-150.0,0.00054798,120]
[357635630,1744262725429,-3000.0,0.000548,120]
[357635631,1744262725470,-221.23658285,0.00054808,120]
[357635632,1744262725509,-150.0,0.00054814,120]
[357635633,1744262725550,-221.23658285,0.00054822,120]
[357635634,1744262725594,-221.23658285,0.00054836,120]
[357635635,1744262725636,-221.23658285,0.0005485,120]
[357635636,1744262725678,-221.23658285,0.00054864,120]
[357635637,1744262725719,-221.23658285,0.00054878,120]
[357635638,1744262725760,-150.0,0.00054887,120]
[357635639,1744262725802,-221.23658285,0.00054891,120]
[357635640,1744262725846,-5815.97955984,0.000549,120]
[357635641,1744262725889,-1452.0,0.000549,120]
[357635642,1744262725931,-1650.0,0.000549,120]
[357635643,1744262725975,-283.17166675,0.000549,120]
[357635644,1744262726017,-283.17166659,0.000549,120]
[357635645,1744262726061,-283.17166659,0.000549,120]
[357635646,1744262726105,-283.17166659,0.000549,120]
[357635647,1744262726146,-283.17166659,0.000549,120]
[357635648,1744262726187,-283.17166659,0.000549,120]
[357635649,1744262726226,-283.17166659,0.000549,120]
[357635650,1744262726270,-283.17166659,0.000549,120]
[357635651,1744262726309,-283.17166659,0.000549,120]
[357635652,1744262726350,-221.23658285,0.00054905,120]
[357635653,1744262726390,-221.23658285,0.00054919,120]
[357635654,1744262726431,-221.23658285,0.00054933,120]
[357635655,1744262726470,-1282.0,0.00054941,30]
[357635656,1744262726509,-221.23658285,0.00054947,120]
[357635657,1744262726548,-221.23658285,0.00054961,120]
[357635658,1744262726589,-221.23658285,0.00054974,120]
[357635659,1744262726629,-221.23658285,0.00054988,120]
[357635660,1744262726668,-8000.0,0.00054998,45]
[357635661,1744262726708,-1000.0,0.00054999,120]
[357635662,1744262726751,-50000.0,0.00055,55]
[357635663,1744262726794,-50000.0,0.00055,65]
[357635664,1744262726836,-3000.0,0.00055,120]
[357635665,1744262726877,-500.0,0.00055,120]
[357635666,1744262726920,-1000000.0,0.00055,120]
[357635667,1744262726965,-1000000.0,0.00055,120]
[357635668,1744262727006,-2000.0,0.00055,120]
[357635669,1744262727050,-2000.00000099,0.00055,120]
[357635670,1744262727100,-849331.4222748,0.00055,120]
[357635671,1744262731382,-500.0,0.00049999,120]
[357635672,1744262731422,-500.0,0.00049999,120]
[357635673,1744262731461,-500.0,0.00049999,120]
[357635674,1744262731503,-500.0,0.00049999,120]
[357635675,1744262731545,-500.0,0.00049999,120]
[357635676,1744262731585,-381.0158473,0.00049999,120]
[357635677,1744262731625,-500.0,0.00049999,120]
[357635678,1744262731664,-500.0,0.00049999,120]
[357635679,1744262731704,-500.0,0.00049999,120]
[357635680,1744262731747,-500.0,0.00049999,120]
[357635681,1744262731787,-500.0,0.00049999,120]
[357635682,1744262731825,-500.0,0.00049999,120]
[357635683,1744262731872,-150.0,0.00054833,120]
[357635684,1744262731911,-150.0,0.00054852,120]
[357635685,1744262731949,-150.0,0.00054871,120]
[357635686,1744262731989,-150.0,0.0005489,120]
[357635687,1744262732027,-283.17166659,0.000549,120]
[357635688,1744262732065,-150.0,0.00054909,120]
[357635689,1744262732103,-150.0,0.00054928,120]
[357635690,1744262732141,-150.0,0.00054947,120]
[357635691,1744262732179,-150.0,0.00054966,120]
[357635692,1744262732217,-150.0,0.00054985,120]
[357635693,1744262732259,-150668.5777252,0.00055,120]
[357635694,1744262732298,-690.0,0.00055,120]
[357635695,1744262732335,-10000.0,0.00055,120]
[357635696,1744262732373,-1060.2614075,0.00055,120]
[357635697,1744262732413,-500.0,0.00055,120]
[357635698,1744262732453,-500.0,0.00055,120]
[357635699,1744262732492,-500.0,0.00055,120]
[357635700,1744262732531,-1000.0,0.00055,60]
[357635701,1744262732568,-797929.3374923,0.00055,30]
[357635702,1744262732606,-890.0,0.00055,120]
[357635703,1744262732643,-354.59113903,0.00055,120]
[357635704,1744262732679,-944.4253857,0.00055,30]
[357635705,1744262732716,-206.0,0.00055,120]
[357635706,1744262732759,-9224.70465178,0.00055,120]
[357635707,1744262732798,-5000.0,0.00055,120]
[357635708,1744262732837,-3362.05297421,0.00055,120]
[357635709,1744262732876,-168.0,0.00055,120]
[357635710,1744262732916,-771.42258904,0.00055,120]
[357635711,1744262732955,-6172.28963429,0.00055,120]
[357635712,1744262732995,-221.23658285,0.00055002,120]
[357635713,1744262733040,-150.0,0.00055004,120]
[357635714,1744262733083,-1000.0,0.00055013,30]
[357635715,1744262733127,-221.23658285,0.00055016,120]
[357635716,1744262733170,-150.0,0.00055023,120]
[357635717,1744262733212,-221.23658285,0.0005503,120]
[357635718,1744262733256,-150.0,0.00055042,120]
[357635719,1744262733300,-221.23658285,0.00055044,120]
[357635720,1744262733342,-221.23658285,0.00055057,120]
[357635721,1744262733382,-4798.44100215,0.0005506,30]
[357635722,1744262733425,-150.0,0.00055061,120]
[357635723,1744262733468,-3754.97,0.00055068,120]
[357635724,1744262733509,-168.0,0.00055068,120]
[357635725,1744262733552,-221.23658285,0.00055071,120]
[357635726,1744262733595,-150.0,0.0005508,120]
[357635727,1744262733638,-221.23658285,0.00055085,120]
[357635728,1744262733680,-999.0,0.00055095,120]
[357635729,1744262733723,-999.0,0.00055095,120]
[357635730,1744262733765,-999.0,0.00055095,120]
[357635731,1744262733806,-999.0,0.00055095,120]
[357635732,1744262733853,-999.0,0.00055095,120]
[357635733,1744262733897,-999.0,0.00055095,120]
[357635734,1744262733941,-999.0,0.00055095,120]
[357635735,1744262733985,-999.0,0.00055095,120]
[357635736,1744262734028,-999.0,0.00055095,120]
[357635737,1744262734071,-999.0,0.00055095,120]
[357635738,1744262734114,-999.0,0.00055095,120]
[357635739,1744262734155,-999.0,0.00055095,120]
[357635740,1744262734198,-999.0,0.00055095,120]
[357635741,1744262734241,-999.0,0.00055095,120]
[357635742,1744262734287,-936.80126932,0.00055095,120]
[357635743,1744262734331,-221.23658285,0.00055099,120]
[357635744,1744262734384,-150.0,0.00055099,120]
[357635745,1744262734429,-221.23658285,0.00055113,120]
[357635746,1744262734472,-150.0,0.00055118,120]
[357635747,1744262734516,-221.23658285,0.00055127,120]
[357635748,1744262734560,-150.0,0.00055137,120]
[357635749,1744262734887,-221.23658285,0.0005514,120]
[357635750,1744262734941,-221.23658285,0.00055154,120]
[357635751,1744262734983,-150.0,0.00055155,120]
[357635752,1744262735024,-150.0,0.00055156,120]
[357635753,1744262735067,-221.23658285,0.00055168,120]
[357635754,1744262735109,-221.23658285,0.00055182,120]
[357635755,1744262735151,-221.23658285,0.00055196,120]
[357635756,1744262735193,-150.0,0.00055196,120]
[357635757,1744262735235,-1237.39,0.00055205,120]
[357635758,1744262735279,-221.23658285,0.0005521,120]
[357635759,1744262735325,-221.23658285,0.00055223,120]
[357635760,1744262735365,-221.23658285,0.00055237,120]
[357635761,1744262735408,-221.23658285,0.00055251,120]
[357635762,1744262735448,-221.23658285,0.00055265,120]
[357635763,1744262735487,-221.23658285,0.00055279,120]
[357635764,1744262735526,-221.23658285,0.00055293,120]
[357635765,1744262735566,-2000.0,0.000553,90]
[357635766,1744262735607,-221.23658285,0.00055306,120]
[357635767,1744262735646,-221.23658285,0.0005532,120]
[357635768,1744262735686,-221.23658285,0.00055334,120]
[357635769,1744262735730,-500.0,0.00055342,120]
[357635770,1744262735772,-3754.97,0.00055342,120]
[357635771,1744262735812,-221.23658285,0.00055348,120]
[357635772,1744262735854,-221.23658285,0.00055362,120]
[357635773,1744262735895,-221.23658285,0.00055376,120]
[357635774,1744262735937,-150.0,0.00055387,120]
[357635775,1744262735980,-221.23658285,0.00055389,120]
[357635776,1744262736022,-221.23658285,0.00055403,120]
[357635777,1744262736062,-221.23658285,0.00055417,120]
[357635778,1744262736102,-221.23658285,0.00055431,120]
[357635779,1744262736143,-221.23658285,0.00055445,120]
[357635780,1744262736183,-221.23658285,0.00055459,120]
[357635781,1744262736223,-1282.0,0.00055485,30]
[357635782,1744262736266,-151.041005,0.00055498,120]
[357635783,1744262736311,-1000000.0,0.000555,120]
[357635784,1744262736354,-959652.49239369,0.000556,120]
[357635785,1744262738265,11388.93550588,0.00043162,120]
[357635786,1744262745753,-4200.96529181,0.0005,120]
[357635787,1744262745997,-283.17166659,0.000549,120]
[357635788,1744262746043,-283.17166659,0.000549,120]
[357635789,1744262746085,-283.17166659,0.000549,120]
[357635790,1744262746126,-150.0,0.00055175,120]
[357635791,1744262746165,-150.0,0.00055194,120]
[357635792,1744262746203,-150.0,0.00055213,120]
[357635793,1744262746244,-150.0,0.00055232,120]
[357635794,1744262746283,-150.0,0.00055251,120]
[357635795,1744262746322,-150.0,0.0005527,120]
[357635796,1744262746360,-150.0,0.00055289,120]
[357635797,1744262746398,-150.0,0.00055308,120]
[357635798,1744262746436,-150.0,0.00055327,120]
[357635799,1744262746474,-150.0,0.00055346,120]
[357635800,1744262746511,-150.0,0.00055365,120]
[357635801,1744262746549,-150.0,0.00055384,120]
[357635802,1744262746588,-150.0,0.00055403,120]
[357635803,1744262746626,-150.0,0.00055422,120]
[357635804,1744262746663,-150.0,0.00055441,120]
[357635805,1744262746700,-150.0,0.0005546,120]
[357635806,1744262746737,-150.0,0.00055479,120]
[357635807,1744262746776,-150.0,0.00055498,120]
[357635808,1744262746814,-150.0,0.00055517,120]
[357635809,1744262746855,-150.0,0.00055536,120]
[357635810,1744262746893,-150.0,0.00055555,120]
[357635811,1744262746931,-150.0,0.00055574,120]
[357635812,1744262746971,-150.0,0.00055593,120]
[357635813,1744262747014,-40347.50760631,0.000556,120]
[357635814,1744262747055,-174.0,0.000556,62]
[357635815,1744262747094,-150.0,0.00055612,120]
[357635816,1744262747133,-3755.1975978,0.00055616,120]
[357635817,1744262747172,-150.0,0.00055631,120]
[357635818,1744262747210,-150.0,0.0005565,120]
[357635819,1744262747254,-150.0,0.00055669,120]
[357635820,1744262747293,-150.0,0.00055688,120]
[357635821,1744262747334,-150.0,0.00055708,120]
[357635822,1744262747373,-150.0,0.00055727,120]
[357635823,1744262747412,-150.0,0.00055746,120]
[357635824,1744262747453,-150.0,0.00055765,120]
[357635825,1744262747493,-150.0,0.00055784,120]
[357635826,1744262747533,-151.041005,0.00055798,120]
[357635827,1744262747575,-150.0,0.00055803,120]
[357635828,1744262747614,-150.0,0.00055822,120]
[357635829,1744262747653,-170.86,0.00055833,120]
[357635830,1744262747692,-550.95,0.00055833,120]
[357635831,1744262747735,-150.0,0.00055841,120]
[357635832,1744262747774,-150.0,0.0005586,120]
[357635833,1744262747813,-2678.0,0.0005587,68]
[357635834,1744262747853,-150.0,0.00055879,120]
[357635835,1744262747892,-189.05149724,0.00055888,120]
[357635836,1744262747938,-1286.52,0.000559,57]
[357635837,1744262747983,-1286.52,0.000559,57]
[357635838,1744262748029,-1286.52,0.000559,57]
[357635839,1744262748076,-1286.52,0.000559,57]
[357635840,1744262748123,-1286.52,0.000559,57]
[357635841,1744262748167,-1286.52,0.000559,57]
[357635842,1744262748211,-1286.52,0.000559,57]
[357635843,1744262748256,-1286.52,0.000559,57]
[357635844,1744262748301,-1286.52,0.000559,57]
[357635845,1744262748346,-1286.52,0.000559,57]
[357635846,1744262748393,-1286.52,0.000559,57]
[357635847,1744262748441,-1286.52,0.000559,57]
[357635848,1744262748487,-1286.52,0.000559,57]
[357635849,1744262748534,-1286.52,0.000559,57]
[357635850,1744262748580,-1286.52,0.000559,57]
[357635851,1744262748624,-1286.52,0.000559,57]
[357635852,1744262748667,-50000.0,0.00056,56]
[357635853,1744262748710,-50000.0,0.00056,66]
[357635854,1744262748761,-1000.0,0.00056,120]
[357635855,1744262748835,-1000000.0,0.00056,120]
[357635856,1744262748920,-700.0,0.00056,120]
[357635857,1744262748990,-1000000.0,0.00056,120]
[357635858,1744262749048,-5400.22461952,0.00056,120]
[357635859,1744262749099,-5000.0,0.00056,120]
[357635860,1744262749147,-44629.0,0.00056,120]
[357635861,1744262749193,-300.0,0.00056,120]
[357635862,1744262749240,-5000.0,0.00056,120]
[357635863,1744262749287,-2902.43,0.00056,60]
[357635864,1744262749330,-24431.88,0.00056,60]
[357635865,1744262749371,-50115.19327809,0.00056,40]
[357635866,1744262749412,-4150.0,0.00056,120]
[357635867,1744262749721,-553.0,0.00056,120]
[357635868,1744262749791,-1282.0,0.00056029,30]
[357635869,1744262749857,-500.0,0.00056164,120]
[357635870,1744262749919,-3617.67625618,0.0005619,120]
[357635871,1744262749992,-3617.67625618,0.0005619,120]
[357635872,1744262750056,-150.0,0.00056237,120]
[357635873,1744262750096,-151.041005,0.00056498,120]
[357635874,1744262750138,-667148.4705871,0.000565,120]
[357635875,1744262751990,-1286.0,0.0001789,2]
[357635876,1744262752012,-2045.0,0.0001789,2]
[357635877,1744262752034,-575.0,0.0001789,2]
[357635878,1744262752491,-1326.0,0.0001789,2]
[357635879,1744262752538,-1437.0,0.0001789,2]
[357635880,1744262752559,-1278.0,0.0001789,2]
[357635881,1744262752579,-907.0,0.0001789,2]
[357635882,1744262752599,-791.0,0.0001789,2]
[357635883,1744262752620,-4144.0,0.0001789,2]
[357635884,1744262752640,-544.0,0.0001789,2]
[357635885,1744262752660,-151.0,0.0001789,2]
[357635886,1744262752680,-3960.0,0.0001789,2]
[357635887,1744262752699,-852.0,0.0001789,2]
[357635888,1744262752718,-1121.0,0.0001789,2]
[357635889,1744262752739,-731.34,0.00019219,2]
[357635890,1744262752759,-178.9493,0.00019299,2]
[357635891,1744262752780,-1933.6126887,0.00019399,2]
[357635892,1744262752801,-5371.25362509,0.00019434,2]
[357635893,1744262752823,-200.0,0.00019467,7]
[357635894,1744262752844,-250.0,0.00019556,2]
[357635895,1744262752866,-407.88,0.00019571,2]
[357635896,1744262752887,-576.003,0.000198,2]
[357635897,1744262752909,-501.496,0.00019886,2]
[357635898,1744262752931,-500.0,0.00019886,2]
[357635899,1744262752951,-11618.35258944,0.00019899,2]
[357635900,1744262752972,-37197.0127,0.000199,2]
[357635901,1744262752995,-1000.0,0.000199,2]
[357635902,1744262753017,-525.18300195,0.000199,2]
[357635903,1744262753039,-211.69989568,0.000199,2]
[357635904,1744262753063,-168.7122295,0.000199,2]
[357635905,1744262753084,-189.14936193,0.000199,2]
[357635906,1744262753107,-1000.0,0.000199,2]
[357635907,1744262753128,-229.28503653,0.000199,2]
[357635908,1744262753148,-1684.93084497,0.000199,2]
[357635909,1744262754086,-815.06915503,0.000199,2]
[357635910,1744262754107,-500.0,0.00019973,2]
[357635911,1744262754128,-500.0,0.00019973,2]
[357635912,1744262754149,-495.96,0.00019986,2]
[357635913,1744262754168,-173.70670832,0.0001999,2]
[357635914,1744262754189,-958.38,0.00019999,2]
[357635915,1744262754209,-1001.1354,0.00019999,2]
[357635916,1744262754230,-1219.0,0.0002,2]
[357635917,1744262754256,-46445.61695141,0.0002,2]
[357635918,1744262755259,-500.0006832,0.00043162,30]
[357635919,1744262755422,-150.0,0.00054795,120]
[357635920,1744262755462,-150.0,0.00054811,120]
[357635921,1744262755499,-283.17166659,0.000549,120]
[357635922,1744262755535,-283.17166659,0.000549,120]
[357635923,1744262755572,-2333.19449665,0.0005506,30]
[357635924,1744262755611,-150.0,0.00055898,120]
[357635925,1744262755649,-150.0,0.00055917,120]
[357635926,1744262755688,-150.0,0.00055936,120]
[357635927,1744262755725,-150.0,0.00055955,120]
[357635928,1744262755761,-150.0,0.00055974,120]
[357635929,1744262755798,-150.0,0.00055993,120]
[357635930,1744262755836,-150.0,0.00056012,120]
[357635931,1744262755874,-150.0,0.00056031,120]
[357635932,1744262755913,-150.0,0.0005605,120]
[357635933,1744262756217,-150.0,0.00056069,120]
[357635934,1744262756256,-150.0,0.00056088,120]
[357635935,1744262756293,-150.0,0.00056107,120]
[357635936,1744262756329,-150.0,0.00056126,120]
[357635937,1744262756364,-150.0,0.00056145,120]
[357635938,1744262756402,-214.93920424,0.00056164,120]
[357635939,1744262756440,-332851.5294129,0.000565,120]
[357635940,1744262756479,-1000000.0,0.000565,120]
[357635941,1744262756515,-150.0,0.00056514,120]
[357635942,1744262756550,-1067.0,0.000567,120]
[357635943,1744262756586,-151.041005,0.00056798,120]
[357635944,1744262756621,-956.59895109,0.00056955,60]
[357635945,1744262756656,-500.0,0.00056986,120]
[357635946,1744262756692,-159000.0,0.00056999,30]
[357635947,1744262756728,-159000.0,0.00056999,30]
[357635948,1744262756766,-50000.0,0.00057,57]
[357635949,1744262756807,-50000.0,0.00057,67]
[357635950,1744262756845,-1000000.0,0.00057,120]
[357635951,1744262756882,-240309.35291374,0.00057,120]
[357635952,1744262761102,-150.0,0.00054828,120]
[357635953,1744262761142,-150.0,0.00054845,120]
[357635954,1744262761181,-150.0,0.00054862,120]
[357635955,1744262761218,-150.0,0.00054879,120]
[357635956,1744262761258,-150.0,0.00054896,120]
[357635957,1744262761297,-283.17166659,0.000549,120]
[357635958,1744262761334,-150.0,0.00054913,120]
[357635959,1744262761378,-150.0,0.0005493,120]
[357635960,1744262761417,-150.0,0.00054947,120]
[357635961,1744262761457,-150.0,0.00054964,120]
[357635962,1744262761496,-150.0,0.0005498,120]
[357635963,1744262761535,-150.0,0.00054997,120]
[357635964,1744262761574,-150.0,0.00055014,120]
[357635965,1744262761613,-150.0,0.00055031,120]
[357635966,1744262761650,-150.0,0.00055048,120]
[357635967,1744262761688,-150.0,0.00055065,120]
[357635968,1744262761726,-150.0,0.00055082,120]
[357635969,1744262761763,-150.0,0.00055099,120]
[357635970,1744262761803,-759690.64708626,0.00057,120]
[357635971,1744262761844,-1000000.0,0.00057,120]
[357635972,1744262761885,-1000000.0,0.00057,120]
[357635973,1744262761927,-237476.18124715,0.00057,120]
[357635974,1744262763119,211.84006142,0.00043162,90]
[357635975,1744262765710,-283.17166659,0.000549,120]
[357635976,1744262765749,-150.0,0.00055116,120]
[357635977,1744262765788,-150.0,0.00055133,120]
[357635978,1744262765826,-150.0,0.0005515,120]
[357635979,1744262765864,-150.0,0.00055166,120]
[357635980,1744262765901,-150.0,0.00055183,120]
[357635981,1744262765938,-150.0,0.000552,120]
[357635982,1744262765976,-150.0,0.00055217,120]
[357635983,1744262766015,-150.0,0.00055234,120]
[357635984,1744262766053,-150.0,0.00055251,120]
[357635985,1744262766092,-150.0,0.00055268,120]
[357635986,1744262766129,-150.0,0.00055285,120]
[357635987,1744262766167,-150.0,0.00055302,120]
[357635988,1744262766203,-150.0,0.00055319,120]
[357635989,1744262766241,-762523.81875285,0.00057,120]
[357635990,1744262766286,-150.0,0.0005705,120]
[357635991,1744262766325,-150.0,0.00057141,120]
[357635992,1744262766367,-150.0,0.00057202,120]
[357635993,1744262766405,-150.0,0.00057318,120]
[357635994,1744262766443,-1515.20187447,0.00057448,30]
[357635995,1744262766481,-151.041005,0.00057498,120]
[357635996,1744262766520,-1000000.0,0.000575,120]
[357635997,1744262766559,-1151.9,0.00057534,120]
[357635998,1744262766598,-168.0,0.00057534,120]
[357635999,1744262766636,-419.29,0.00057534,120]
[357636000,1744262766700,150.0,0.00055336,120]
[357636001,1744262766797,150.0,0.00055352,120]
[357636002,1744262767168,150.0,0.00055369,120]
[357636003,1744262767239,150.0,0.00055386,120]
[357636004,1744262767298,150.0,0.00055403,120]
[357636005,1744262767360,150.0,0.0005542,120]
[357636006,1744262767420,150.0,0.00055437,120]
[357636007,1744262767652,150.0,0.00055454,120]
[357636008,1744262767803,150.0,0.00055471,120]
[357636009,1744262767948,278.008,0.00055859,30]
[357636010,1744262768327,283.17166659,0.000549,120]
[357636011,1744262768373,150.0,0.00055488,120]
[357636012,1744262769106,150.0,0.00055505,120]
[357636013,1744262769183,1515.20187447,0.00057448,30]
[357636014,1744262769424,150.0,0.00055522,120]
[357636015,1744262770155,150.0,0.00055538,120]
[357636016,1744262770482,150.0,0.00055555,120]
[357636017,1744262770796,150.0,0.00055572,120]
[357636018,1744262771111,150.0,0.00055589,120]
[357636019,1744262771433,150.0,0.00055606,120]
[357636020,1744262771724,150.0,0.00055623,120]
[357636021,1744262772033,150.0,0.0005564,120]
[357636022,1744262772330,800.0,0.00056999,120]
[357636023,1744262772374,150.0,0.00055657,120]
[357636024,1744262772656,150.0,0.00055674,120]
[357636025,1744262773286,150.0,0.00055691,120]
[357636026,1744262773426,150.0,0.00055708,120]
[357636027,1744262773491,283.17166659,0.000549,120]
[357636028,1744262773638,150.0,0.00055724,120]
[357636029,1744262774009,150.0,0.00055741,120]
[357636030,1744262774377,150.0,0.00055758,120]
[357636031,1744262774705,150.0,0.00055775,120]
[357636032,1744262775235,150.0,0.00055792,120]
[357636033,1744262775380,150.0,0.00055809,120]
[357636034,1744262775691,150.0,0.00055826,120]
[357636035,1744262776011,150.0,0.00055843,120]
[357636036,1744262776347,150.0,0.0005586,120]
[357636037,1744262776694,150.0,0.00055877,120]
[357636038,1744262777014,150.0,0.00055893,120]
[357636039,1744262777353,150.0,0.0005591,120]
[357636040,1744262777708,150.0,0.00055927,120]
[357636041,1744262778004,150.0,0.00055944,120]
[357636042,1744262778320,283.17166659,0.000549,120]
[357636043,1744262778366,150.0,0.00055961,120]
[357636044,1744262778601,2435.58,0.00057534,30]
[357636045,1744262778672,150.0,0.00055978,120]
[357636046,1744262779017,150.0,0.00055995,120]
[357636047,1744262779420,150.0,0.00056012,120]
[357636048,1744262779723,150.0,0.00056029,120]
[357636049,1744262780038,150.0,0.00056046,120]
[357636050,1744262780373,150.0,0.00056063,120]
[357636051,1744262780775,150.0,0.00056079,120]
[357636052,1744262781321,150.0,0.00056096,120]
[357636053,1744262781657,150.0,0.00056113,120]
[357636054,1744262781983,150.0,0.0005613,120]
[357636055,1744262782290,150.0,0.00056147,120]
[357636056,1744262782597,269.60769703,0.00056164,120]
[357636057,1744262784835,158.26314113,0.00054795,120]
[357636058,1744262786661,-150.0,0.00057562,120]
[357636059,1744262786700,-150.0,0.00057668,120]
[357636060,1744262786741,-2000000.0,0.000577,120]
[357636061,1744262786783,-999700.0,0.000577,120]
[357636062,1744262787119,150.0,0.00054795,120]
[357636063,1744262787175,5558.0,0.000538,120]
[357636064,1744262787399,2514.0,0.000529,120]
[357636065,1744262787651,150.0,0.00054814,120]
[357636066,1744262787975,150.0,0.00054833,120]
[357636067,1744262788704,150.0,0.00054852,120]
[357636068,1744262789022,150.0,0.00054871,120]
[357636069,1744262789342,150.0,0.0005489,120]
[357636070,1744262789658,5000.0,0.00053,120]
[357636071,1744262789702,150.0,0.00054909,120]
[357636072,1744262789987,150.0,0.00054928,120]
[357636073,1744262790326,150.0,0.00054947,120]
[357636074,1744262790707,150.0,0.00054966,120]
[357636075,1744262791051,150.0,0.00054985,120]
[357636076,1744262791346,150.0,0.00055004,120]
[357636077,1744262791636,150.0,0.00055023,120]
[357636078,1744262791928,150.0,0.00055042,120]
[357636079,1744262792259,150.0,0.00055061,120]
[357636080,1744262792581,150.0,0.0005508,120]
[357636081,1744262792896,150.0,0.00055099,120]
[357636082,1744262793382,150.0,0.00055118,120]
[357636083,1744262794314,150.0,0.00055137,120]
[357636084,1744262794396,150.0,0.00055156,120]
[357636085,1744262797484,-150.0,0.00055175,120]
[357636086,1744262797523,-150.0,0.00055194,120]
[357636087,1744262797563,-150.0,0.00055213,120]
[357636088,1744262797602,-150.0,0.00055232,120]
[357636089,1744262797642,-150.0,0.00055251,120]
[357636090,1744262797682,-150.0,0.0005527,120]
[357636091,1744262797718,-150.0,0.00055289,120]
[357636092,1744262797759,-300.0,0.000577,120]
[357636093,1744262797800,-151.041005,0.00057798,120]
[357636094,1744262797838,-5000.15278071,0.000578,120]
[357636095,1744262797878,-500.0,0.00057808,120]
[357636096,1744262797920,-50000.0,0.00058,58]
[357636097,1744262797960,-50000.0,0.00058,68]
[357636098,1744262798000,-1000000.0,0.00058,120]
[357636099,1744262798038,-600.0,0.00058,120]
[357636100,1744262798079,-1000000.0,0.00058,120]
[357636101,1744262798118,-500.0,0.00058,120]
[357636102,1744262798156,-44629.0,0.00058,120]
[357636103,1744262798193,-212.0,0.00058,120]
[357636104,1744262798230,-215.0,0.00058,120]
[357636105,1744262798267,-613.47,0.00058,120]
[357636106,1744262798304,-151.0,0.00058027,120]
[357636107,1744262798340,-2000.0,0.000581,90]
[357636108,1744262798378,-150.0,0.00058185,120]
[357636109,1744262798415,-3617.67625618,0.0005819,120]
[357636110,1744262798455,-3617.67625618,0.0005819,120]
[357636111,1744262798494,-1000.00000005,0.0005819,120]
[357636112,1744262798533,-150.0,0.0005838,120]
[357636113,1744262798853,-150.0,0.00058389,120]
[357636114,1744262798896,-835392.98370188,0.000584,120]
[357636115,1744262808838,-6541.92,0.00034649,30]
[357636116,1744262809747,-150.0,0.00049748,120]
[357636117,1744262809792,-150.0,0.00050829,120]
[357636118,1744262809829,-150.0,0.00051911,120]
[357636119,1744262809867,-150.0,0.00052992,120]
[357636120,1744262809905,-2321.94,0.00054,60]
[357636121,1744262809942,-150.0,0.00054074,120]
[357636122,1744262809983,-150.0,0.00055155,120]
[357636123,1744262810019,-150.0,0.00055308,120]